Workbook

Sheet NOTES
A2: The model has actual and test data to illustrate the workings of the model. | D2: ='Model update'!B5 -> 2022
A4: Issue | B4: Location | C4: Item | D4: Comment
A6: 1 | B6: 'Model update'!B21 | C6: CPI | D6: ="Updated June "&D2-1&" CPI for "&D2 -> Updated June 2021 CPI for 2022 | E6: NOTE: This worksheet is programmed to update for each year - use as checklist and note any placeholders or changes
E7: NOTE: Worksheet names in this file are programmed to update each year once each worksheet is accessed and a cell is selected
A8: =A6+1 -> 2 | B8: 'Model update'!B36 | C8: ="Xt for "&D2 -> Xt for 2022 | D8: ="Updated "&$D$2&" value" -> Updated 2022 value
A10: =A8+1 -> 3 | B10: 'Model update'!B46 | C10: ="Pass Through Amount for "&D2 -> Pass Through Amount for 2022 | D10: NIL for 2022
A12: =A10+1 -> 4 | B12: 'Model update'!B58 | C12: Real Pre-tax WACC (rptw) | D12: ="Updated "&$D$2&" value" -> Updated 2022 value
A14: =A12+1 -> 5 | B14: ="Prop"&D2&"DistTar!E8:E96" -> Prop2022DistTar!E8:E96 | C14: =D2-1&" tariffs" -> 2021 tariffs | D14: ="Updated from "&D2-1&" model" -> Updated from 2021 model
A16: =A14+1 -> 6 | B16: ARS!B6:B12 | C16: =D2-1&" ARS tariffs" -> 2021 ARS tariffs | D16: ="Updated from "&D2-1&" model" -> Updated from 2021 model
A18: =A16+1 -> 7 | B18: The following is test data to illustrate the workings of the model. | D18: Input data required from DNSPs
B19: ="Prop"&D2&"DistTar!D8:D96" -> Prop2022DistTar!D8:D96 | C19: ="Proposed "&D2&" Tariffs" -> Proposed 2022 Tariffs
B20: ="Prop"&D2&"DistTar!F8:F96" -> Prop2022DistTar!F8:F96 | C20: ="Actual "&D2-2&" Volumes" -> Actual 2020 Volumes
B22: ARS!C6:C12 | C22: ="Proposed "&D2&" Ancillary Reference Services Charges" -> Proposed 2022 Ancillary Reference Services Charges | D22: Calculated using formula

Sheet Model update
A3: Tariff Approval Template for | B3: Aust. Gas Networks (Vic & Albury)
A5: Calendar year commencing | B5: 2022
A7: t | B7: =B5 -> 2022
A8: t-1 | B8: =B7-1 -> 2021
A9: t-2 | B9: 2020
A10: t-3 | B10: 2019
A13: Please fill in yellow highlighted cells where appropriate
A15: CPI
A17: CPI Index June 2016 | B17: 108.6
A18: CPI Index June 2017 | B18: 110.7
A19: CPI Index June 2018 | B19: 113
A20: CPI Index June 2019 | B20: 114.8
A21: CPI Index June 2020 | B21: 114.4
A22: CPI Index June 2021 | B22: 118.8
A25: ="CPI Index June " &$B$10 -> CPI Index June 2019 | B25: =VLOOKUP(A25,A$17:B$22,2,FALSE) -> 114.8
A26: ="CPI Index June " &$B$9 -> CPI Index June 2020 | B26: =VLOOKUP(A26,A$17:B$22,2,FALSE) -> 114.4
A27: ="CPI Index June " &$B$8 -> CPI Index June 2021 | B27: =VLOOKUP(A27,A$17:B$22,2,FALSE) -> 118.8
A29: ="CPI " &$B$8 -> CPI 2021 | B29: =B26/B25-1 -> -0.003484320557
A30: ="CPI " &$B$5 -> CPI 2022 | B30: =B27/B26-1 -> 0.03846153846
A33: ="Xt for "&B$5 -> Xt for 2022
A34: 2019 | B34: -0.0129320032
A35: 2020 | B35: -0.005964380543
A36: 2021 | B36: -0.002912158543
A37: 2022 | B37: ='[1]Model update'!$B$37 -> -0.005635937097
A40: ="Xt for "&B$5 -> Xt for 2022 | B40: =VLOOKUP(B5,A34:B38,2,FALSE) -> -0.005635937097
A43: Pass Through Amounts : PT (t)
A44: 2019 | B44: 0
A45: 2020 | B45: 0
A46: 2021 | B46: 0
A47: 2022 | B47: 0
A50: ="Pass Through Amount for "&B$5 -> Pass Through Amount for 2022 | B50: =VLOOKUP(B5,A44:B48,2,FALSE) -> 0
A51: The Pass Through Amount is to include an amount that reflects the time value of money between incurring the costs and recovering the costs
A52: and excludes any amounts already passed through in reference tariffs.
A55: Pre-tax WACC for distribution tariffs
A58: Pretax WACCD | B58: 0.03605542632

Sheet Prop2022DistTar
B1: ="Tariff Approval - "&'Model update'!B3 -> Tariff Approval - Aust. Gas Networks (Vic & Albury) | D1: ="Prop"&'Model update'!B5&"DistTar" -> Prop2022DistTar
B3: ="PROPOSED "&'Model update'!$B$5&" DISTRIBUTION TARIFFS" -> PROPOSED 2022 DISTRIBUTION TARIFFS
B5: Proposed tariff name | C5: Existing tariff name | D5: ="Prop "&'Model update'!$B$5&" Tariff" -> Prop 2022 Tariff | E5: ="Exist "&'Model update'!$B$8&" Tariff" -> Exist 2021 Tariff | F5: ="Actual "&'Model update'!$B$9&" Volumes" -> Actual 2020 Volumes | G5: Prop Tar Revenue | H5: Exist Tar Revenue
B6: Tariff V - AGN Central - Residential | C6: Tariff V - AGN Central - Residential
B8: Fixed Charge | C8: Fixed Charge | D8: =ROUND([2]Prop2022DistTar!D8,4) -> 0.193 | E8: 0.193 | F8: 210211700 | G8: =D8*$F8 -> 40570858.1 | H8: =E8*$F8 -> 40570858.1
B9: GJ 0 - 0.0274 | C9: GJ 0 - 0.0274 | D9: =ROUND([2]Prop2022DistTar!D9,4) -> 13.2331 | E9: 11.8856 | F9: 5089650.09 | G9: =D9*$F9 -> 67351848.6 | H9: 60493545.11
B10: GJ 0.0274 - 0.0493 | C10: GJ 0.0274 - 0.0493 | D10: =ROUND([2]Prop2022DistTar!D10,4) -> 7.6085 | E10: 6.8338 | F10: 3282266.537 | G10: 24973124.94 | H10: 22430353.06
B11: GJ > 0.0493 | C11: GJ > 0.0493 | D11: =ROUND([2]Prop2022DistTar!D11,4) -> 3.7514 | E11: 3.7514 | F11: 20196474.25 | G11: 75765053.5 | H11: 75765053.5
B12: Tariff V - AGN Central - Non Residential | C12: Tariff V - AGN Central - Non Residential
B14: Fixed Charge | C14: Fixed Charge | D14: =ROUND([2]Prop2022DistTar!D14,4) -> 0.193 | E14: 0.193 | F14: 7357700 | G14: =D14*$F14 -> 1420036.1 | H14: =E14*$F14 -> 1420036.1
B15: GJ 0 - 0.05 | C15: GJ 0 - 0.05 | D15: =ROUND([2]Prop2022DistTar!D15,4) -> 9.3412 | E15: 8.39 | F15: 260279.1284 | G15: =D15*$F15 -> 2431319.394 | H15: 2183741.888
B16: GJ 0.05 - 0.55 | C16: GJ 0.05 - 0.55 | D16: =ROUND([2]Prop2022DistTar!D16,4) -> 3.9599 | E16: 3.9599 | F16: 1346836.668 | G16: 5333338.521 | H16: 5333338.521
B17: GJ 0.55 - 1.37 | C17: GJ 0.55 - 1.37 | D17: =ROUND([2]Prop2022DistTar!D17,4) -> 2.9536 | E17: 2.9536 | F17: 1013097.139 | G17: 2992283.711 | H17: 2992283.711
B18: GJ > 1.37 | C18: GJ > 1.37 | D18: =ROUND([2]Prop2022DistTar!D18,4) -> 1.1929 | E18: 1.1929 | F18: 3454727.284 | G18: 4121144.177 | H18: 4121144.177
B19: Tariff V - AGN North - Residential | C19: Tariff V - AGN North - Residential
B21: Fixed Charge | C21: Fixed Charge | D21: =ROUND([2]Prop2022DistTar!D21,4) -> 0.193 | E21: 0.193 | F21: 29660925 | G21: =D21*$F21 -> 5724558.525 | H21: =E21*$F21 -> 5724558.525
B22: GJ 0 - 0.0274 | C22: GJ 0 - 0.0274 | D22: =ROUND([2]Prop2022DistTar!D22,4) -> 11.6431 | E22: 10.4575 | F22: 688391.1034 | G22: =D22*$F22 -> 8015006.456 | H22: 7198849.964
B23: GJ 0.0274 - 0.0493 | C23: GJ 0.0274 - 0.0493 | D23: =ROUND([2]Prop2022DistTar!D23,4) -> 6.8155 | E23: 6.1215 | F23: 420751.2703 | G23: 2867630.283 | H23: 2575628.901
B24: GJ > 0.0493 | C24: GJ > 0.0493 | D24: =ROUND([2]Prop2022DistTar!D24,4) -> 3.3609 | E24: 3.3609 | F24: 2776289.638 | G24: 9330831.846 | H24: 9330831.846
B25: Tariff V - AGN North - Non Residential | C25: Tariff V - AGN North - Non Residential
B27: Fixed Charge | C27: Fixed Charge | D27: =ROUND([2]Prop2022DistTar!D27,4) -> 0.193 | E27: 0.193 | F27: 1196858 | G27: =D27*$F27 -> 230993.594 | H27: =E27*$F27 -> 230993.594
B28: GJ 0 - 0.05 | C28: GJ 0 - 0.05 | D28: =ROUND([2]Prop2022DistTar!D28,4) -> 8.3791 | E28: 7.5259 | F28: 36017.44758 | G28: =D28*$F28 -> 301793.795 | H28: 271063.7087
B29: GJ 0.05 - 0.55 | C29: GJ 0.05 - 0.55 | D29: =ROUND([2]Prop2022DistTar!D29,4) -> 3.5788 | E29: 3.5788 | F29: 173290.6648 | G29: 620172.6312 | H29: 620172.6312
B30: GJ 0.55 - 1.37 | C30: GJ 0.55 - 1.37 | D30: =ROUND([2]Prop2022DistTar!D30,4) -> 2.6691 | E30: 2.6691 | F30: 114823.4568 | G30: 306475.2885 | H30: 306475.2885
B31: GJ > 1.37 | C31: GJ > 1.37 | D31: =ROUND([2]Prop2022DistTar!D31,4) -> 1.0785 | E31: 1.0785 | F31: 417484.6139 | G31: 450257.1561 | H31: 450257.1561
B32: Tariff V - Murray Valley - Residential | C32: Tariff V - Murray Valley - Residential
B34: Fixed Charge | C34: Fixed Charge | D34: =ROUND([2]Prop2022DistTar!D34,4) -> 0.2457 | E34: 0.2457 | F34: 3082859 | G34: =D34*$F34 -> 757458.4563 | H34: =E34*$F34 -> 757458.4563
B35: GJ 0 - 0.0274 | C35: GJ 0 - 0.0274 | D35: =ROUND([2]Prop2022DistTar!D35,4) -> 10.1367 | E35: 9.1045 | F35: 61237.19953 | G35: =D35*$F35 -> 620743.1205 | H35: 557534.0831
B36: GJ 0.0274 - 0.0493 | C36: GJ 0.0274 - 0.0493 | D36: =ROUND([2]Prop2022DistTar!D36,4) -> 6.1323 | E36: 5.5079 | F36: 33277.75915 | G36: 204069.2024 | H36: 183290.5696
B37: GJ > 0.0493 | C37: GJ > 0.0493 | D37: =ROUND([2]Prop2022DistTar!D37,4) -> 3.4455 | E37: 3.4455 | F37: 216314.8498 | G37: 745312.8149 | H37: 745312.8149
B38: Tariff V - Murray Valley - Non Residential | C38: Tariff V - Murray Valley - Non Residential
B40: Fixed Charge | C40: Fixed Charge | D40: =ROUND([2]Prop2022DistTar!D40,4) -> 0.2457 | E40: 0.2457 | F40: 133894 | G40: =D40*$F40 -> 32897.7558 | H40: =E40*$F40 -> 32897.7558
B41: GJ 0 - 0.05 | C41: GJ 0 - 0.05 | D41: =ROUND([2]Prop2022DistTar!D41,4) -> 7.492 | E41: 6.7291 | F41: 4363.733558 | G41: =D41*$F41 -> 32693.09182 | H41: 29363.99949
B42: GJ 0.05 - 0.55 | C42: GJ 0.05 - 0.55 | D42: =ROUND([2]Prop2022DistTar!D42,4) -> 3.9744 | E42: 3.9744 | F42: 19533.93317 | G42: 77635.66399 | H42: 77635.66399
B43: GJ 0.55 - 1.37 | C43: GJ 0.55 - 1.37 | D43: =ROUND([2]Prop2022DistTar!D43,4) -> 2.9661 | E43: 2.9661 | F43: 10791.8695 | G43: 32009.76413 | H43: 32009.76413
B44: GJ > 1.37 | C44: GJ > 1.37 | D44: =ROUND([2]Prop2022DistTar!D44,4) -> 1.3427 | E44: 1.3427 | F44: 25569.56803 | G44: 34332.25899 | H44: 34332.25899
B45: Tariff V - Bairnsdale - Residential | C45: Tariff V - Bairnsdale - Residential
B47: Fixed Charge | C47: Fixed Charge | D47: =ROUND([2]Prop2022DistTar!D47,4) -> 0.3176 | E47: 0.3176 | F47: 1725031 | G47: =D47*$F47 -> 547869.8456 | H47: =E47*$F47 -> 547869.8456
B48: GJ 0 - 0.0274 | C48: GJ 0 - 0.0274 | D48: =ROUND([2]Prop2022DistTar!D48,4) -> 21.6053 | E48: 19.4053 | F48: 35064.93851 | G48: =D48*$F48 -> 757588.516 | H48: =E48*$F48 -> 680445.6513
B49: GJ 0.0274 - 0.0493 | C49: GJ 0.0274 - 0.0493 | D49: =ROUND([2]Prop2022DistTar!D49,4) -> 12.5664 | E49: 11.2868 | F49: 18002.24004 | G49: 226223.3493 | H49: 203187.6829
B50: GJ > 0.0493 | C50: GJ > 0.0493 | D50: =ROUND([2]Prop2022DistTar!D50,4) -> 6.2017 | E50: 6.2017 | F50: 80647.19739 | G50: 500149.7241 | H50: 500149.7241
B51: Tariff V - Bairnsdale - Non Residential | C51: Tariff V - Bairnsdale - Non Residential
B53: Fixed Charge | C53: Fixed Charge | D53: =ROUND([2]Prop2022DistTar!D53,4) -> 0.3176 | E53: 0.3176 | F53: 44767 | G53: =D53*$F53 -> 14217.9992 | H53: =E53*$F53 -> 14217.9992
B54: GJ 0 - 0.05 | C54: GJ 0 - 0.05 | D54: =ROUND([2]Prop2022DistTar!D54,4) -> 15.3606 | E54: 13.7965 | F54: 1750.114674 | G54: =D54*$F54 -> 26882.81147 | H54: =E54*$F54 -> 24145.45711
B55: GJ 0.05 - 0.55 | C55: GJ 0.05 - 0.55 | D55: =ROUND([2]Prop2022DistTar!D55,4) -> 6.7261 | E55: 6.7261 | F55: 12304.52536 | G55: 82761.46803 | H55: 82761.46803
B56: GJ 0.55 - 1.37 | C56: GJ 0.55 - 1.37 | D56: =ROUND([2]Prop2022DistTar!D56,4) -> 5.0149 | E56: 5.0149 | F56: 9092.501958 | G56: 45597.98807 | H56: 45597.98807
B57: GJ > 1.37 | C57: GJ > 1.37 | D57: =ROUND([2]Prop2022DistTar!D57,4) -> 2.0105 | E57: 2.0256 | F57: 41529.11348 | G57: 83494.28265 | H57: 84121.37226
B59: Tariff D - AGN Central | C59: Tariff D - AGN Central
B60: 0 - 10 | C60: 0 - 10 | D60: =ROUND([2]Prop2022DistTar!D60,4) -> 1524.8607 | E60: 1460.155 | F60: 1415.4355 | G60: =D60*$F60 -> 2158341.967 | H60: 2066755.223
B61: 10 - 50 | C61: 10 - 50 | D61: =ROUND([2]Prop2022DistTar!D61,4) -> 932.2022 | E61: 892.6453 | F61: 1154.704 | G61: 1076417.609 | H61: 1030741.098
B62: > 50 | C62: > 50 | D62: =ROUND([2]Prop2022DistTar!D62,4) -> 170.2393 | E62: 163.0154 | F62: 1186.3117 | G62: 201956.8734 | H62: 193387.0763
B64: Tariff D - AGN North | C64: Tariff D - AGN North
B65: 0 - 10 | C65: 0 - 10 | D65: =ROUND([2]Prop2022DistTar!D65,4) -> 1524.8607 | E65: 1460.155 | F65: 442.9409 | G65: =D65*$F65 -> 675423.1708 | H65: 646762.3698
B66: 10 - 50 | C66: 10 - 50 | D66: =ROUND([2]Prop2022DistTar!D66,4) -> 932.2022 | E66: 892.6453 | F66: 622.1981 | G66: 580014.4377 | H66: 555402.2096
B67: > 50 | C67: > 50 | D67: =ROUND([2]Prop2022DistTar!D67,4) -> 170.2393 | E67: 163.0154 | F67: 414.342 | G67: 70537.29204 | H67: 67544.12687
B69: Tariff D - Murray Valley | C69: Tariff D - Murray Valley
B70: 0 - 10 | C70: 0 - 10 | D70: =ROUND([2]Prop2022DistTar!D70,4) -> 1777.4082 | E70: 1701.986 | F70: 69.0653 | G70: =D70*$F70 -> 122757.2306 | H70: 117548.1737
B71: 10 - 50 | C71: 10 - 50 | D71: =ROUND([2]Prop2022DistTar!D71,4) -> 1096.7731 | E71: 1050.2328 | F71: 160.5158 | G71: 176049.4116 | H71: 168578.9581
B72: > 50 | C72: > 50 | D72: =ROUND([2]Prop2022DistTar!D72,4) -> 186.7998 | E72: 178.8732 | F72: 85.9536 | G72: 16056.11529 | H72: 15374.79548
B74: Tariff D - Bairnsdale | C74: Tariff D - Bairnsdale
B75: 0 - 10 | C75: 0 - 10 | D75: =ROUND([2]Prop2022DistTar!D75,4) -> 2522.3241 | E75: 2415.2923 | F75: 16.4104 | G75: =D75*$F75 -> 41392.34741 | H75: 39635.91276
B76: 10 - 50 | C76: 10 - 50 | D76: =ROUND([2]Prop2022DistTar!D76,4) -> 1562.5903 | E76: 1496.2836 | F76: 4.8068 | G76: 7511.059054 | H76: 7192.336008
B77: > 50 | C77: > 50 | D77: =ROUND([2]Prop2022DistTar!D77,4) -> 284.9809 | E77: 272.8881 | F77: 0 | G77: 0 | H77: 0
B79: Tariff V - Albury - Residential | C79: Tariff V - Albury - Residential
B81: Fixed Charge | C81: Fixed Charge | D81: =ROUND([2]Prop2022DistTar!D81,4) -> 0.2511 | E81: 0.2511 | F81: 8360632 | G81: =D81*$F81 -> 2099354.695 | H81: 2099354.695
B82: GJ 0 - 0.0274 | C82: GJ 0 - 0.0274 | D82: =ROUND([2]Prop2022DistTar!D82,4) -> 9.5828 | E82: 8.607 | F82: 192275.3101 | G82: 1842535.841 | H82: 1654913.594
B83: GJ 0.0274 - 0.0493 | C83: GJ 0.0274 - 0.0493 | D83: =ROUND([2]Prop2022DistTar!D83,4) -> 5.7278 | E83: 5.1446 | F83: 115094.7429 | G83: 659239.6685 | H83: 592116.4144
B84: GJ > 0.0493 | C84: GJ > 0.0493 | D84: =ROUND([2]Prop2022DistTar!D84,4) -> 2.8251 | E84: 2.8251 | F84: 745173.9341 | G84: 2105190.881 | H84: 2105190.881
B85: Tariff V - Albury - Non Residential | C85: Tariff V - Albury - Non Residential
B87: Fixed Charge | C87: Fixed Charge | D87: =ROUND([2]Prop2022DistTar!D87,4) -> 0.2511 | E87: 0.2511 | F87: 338819 | G87: =D87*$F87 -> 85077.4509 | H87: 85077.4509
B88: GJ 0 - 0.05 | C88: GJ 0 - 0.05 | D88: =ROUND([2]Prop2022DistTar!D88,4) -> 7.0332 | E88: 6.317 | F88: 10894.17386 | G88: 76620.90356 | H88: 68818.49625
B89: GJ 0.05 - 0.55 | C89: GJ 0.05 - 0.55 | D89: =ROUND([2]Prop2022DistTar!D89,4) -> 3.1192 | E89: 3.1192 | F89: 55072.74411 | G89: 171782.9034 | H89: 171782.9034
B90: GJ 0.55 - 1.37 | C90: GJ 0.55 - 1.37 | D90: =ROUND([2]Prop2022DistTar!D90,4) -> 2.215 | E90: 2.215 | F90: 37411.78408 | G90: 82867.10174 | H90: 82867.10174
B91: GJ > 1.37 | C91: GJ > 1.37 | D91: =ROUND([2]Prop2022DistTar!D91,4) -> 0.8944 | E91: 0.8944 | F91: 139269.1496 | G91: 124562.3274 | H91: 124562.3274
B93: Tariff D - Albury | C93: Tariff D - Albury
B94: 0 - 10 | C94: 0 - 10 | D94: =ROUND([2]Prop2022DistTar!D94,4) -> 1311.3808 | E94: 1255.7339 | F94: 39.446 | G94: =D94*$F94 -> 51728.72704 | H94: 49533.67942
B95: 10 - 50 | C95: 10 - 50 | D95: =ROUND([2]Prop2022DistTar!D95,4) -> 814.4879 | E95: 779.9261 | F95: 62.0226 | G95: =D95*$F95 -> 50516.65723 | H95: 48373.04453
B96: > 50 | C96: > 50 | D96: =ROUND([2]Prop2022DistTar!D96,4) -> 196.8796 | E96: 188.5252 | F96: 5.2769 | G96: 1038.913961 | H96: 994.8286279
B101: Total Revenue | C101: Total Revenue | G101: =SUM(G8:G97) -> 270105638.3 | H101: =SUM(H8:H97) -> 258644026

Sheet 2022TarContForm
B1: ="Tariff Approval - "&'Model update'!B3 -> Tariff Approval - Aust. Gas Networks (Vic & Albury) | F1: ='Model update'!B5&"TarContForm" -> 2022TarContForm
B3: ='Model update'!$B$5&" TARIFF CONTROL FORMULA" -> 2022 TARIFF CONTROL FORMULA
B6: CPI
B8: ="CPI June"&'Model update'!$B$9 -> CPI June2020 | C8: ='Model update'!B26 -> 114.4
B9: ="CPI June"&'Model update'!$B$8 -> CPI June2021 | C9: ='Model update'!B27 -> 118.8
B11: ="CPI "&'Model update'!$B$5 -> CPI 2022 | C11: =(C9/C8-1) -> 0.03846153846
B15: X factor
B17: ="X "&'Model update'!$B$5 -> X 2022 | C17: ='Model update'!B40 -> -0.005635937097
B20: Pass Through Factor (PT)
B22: pass through
B23: ="AP (t) "&'Model update'!$B$7 -> AP (t) 2022 | C23: ='Model update'!B50 -> 0
B25: Revenue
B26: ∑∑p(t-1)q(t-2) | C26: =C41 -> 258644026
B28: PT' (t-1) | C28: 0
B29: ="PT' "&'Model update'!$B$5 -> PT' 2022 | C29: =IF(C26="",0,(C23)/((1+C11)*(1-C17)*C26)) -> 0
B31: ="PTt "&'Model update'!$B$5 -> PTt 2022 | C31: =((1+C29)/(1+C28))-1 -> 0
B36: ='Model update'!$B$5&" Distribution price control" -> 2022 Distribution price control
B38: Average price movement allowed | C38: =(1+C11)*(1-C17)*(1+C31) -> 1.044314242
B40: Proposed distribution tariff revenue | C40: =IF(Prop2022DistTar!G101=0,"",Prop2022DistTar!G101) -> 270105638.3
B41: Existing distribution tariff revenue | C41: =IF(Prop2022DistTar!H101=0,"",Prop2022DistTar!H101) -> 258644026
B42: Average price movement | C42: =IF(C40="","",C40/C41) -> 1.044314236
B44: =IF(C40="","",IF(C38>=C42,"DISTRIBUTION PRICE CONTROL FORMULA COMPLIANT","DISTRIBUTION PRICE CONTROL FORMULA BREACHED")) -> DISTRIBUTION PRICE CONTROL FORMULA COMPLIANT

Sheet 2022RebalContForm
B1: ="Tariff Approval - "&'Model update'!B3 -> Tariff Approval - Aust. Gas Networks (Vic & Albury) | C1: ='Model update'!B7&"RebalContForm" -> 2022RebalContForm
B3: ='Model update'!$B$5&" REBALANCING CONTROL FORMULA" -> 2022 REBALANCING CONTROL FORMULA
B6: Rebalancing control
B8: ="CPI "&'Model update'!$B$5 -> CPI 2022 | C8: ='2022TarContForm'!C11 -> 0.03846153846
B9: ="Y "&'Model update'!$B$5 -> Y 2022 | C9: 0.02
B10: ="PTt "&'Model update'!$B$5 -> PTt 2022 | C10: ='2022TarContForm'!C29 -> 0
B11: ="Xt "&'Model update'!$B$5 -> Xt 2022 | C11: ='2022TarContForm'!C17 -> -0.005635937097
B13: Rebalancing control | C13: =(1+C8)*(1+C9)*(1+C10)*(1-C11) -> 1.065200527
B17: Rebalancing control summary
C18: Existing | D18: Proposed | E18: Movement | F18: Assessment
B19: =B38 -> Tariff V - AGN Central - Residential | C19: =C59 -> 199259809.8 | D19: =C60 -> 208660885.1 | E19: =IF(C19=0,0,D19/C19) -> 1.047179988 | F19: =IF(E19=0,"",IF($C$13<=E19,"Breached","Compliant")) -> Compliant
B20: =B68 -> Tariff V - AGN North - Residential | C20: =C89 -> 24829869.24 | D20: =C90 -> 25938027.11 | E20: =IF(C20=0,0,D20/C20) -> 1.044630033 | F20: =IF(E20=0,"",IF($C$13<=E20,"Breached","Compliant")) -> Compliant
B21: =B98 -> Tariff V - Murray Valley - Residential | C21: =C119 -> 2243595.924 | D21: =C120 -> 2327583.594 | E21: 1.037434401 | F21: Compliant
B22: =B128 -> Tariff V - Bairnsdale - Residential | C22: =C149 -> 1931652.904 | D22: =C150 -> 2031831.435 | E22: 1.051861559 | F22: Compliant
B23: =B158 -> Tariff V - AGN Central - Non Residential | C23: =C179 -> 16050544.4 | D23: =C180 -> 16298121.9 | E23: 1.015424867 | F23: Compliant
B24: =B188 -> Tariff V - AGN North - Non Residential | C24: =C209 -> 1878962.378 | D24: =C210 -> 1909692.465 | E24: 1.016354817 | F24: =IF(E24=0,"",IF($C$13<=E24,"Breached","Compliant")) -> Compliant
B25: =B218 -> Tariff V - Murray Valley - Non Residential | C25: =C239 -> 206239.4424 | D25: =C240 -> 209568.5347 | E25: 1.01614188 | F25: Compliant
B26: =B248 -> Tariff V - Bairnsdale - Non Residential | C26: =C269 -> 250844.2847 | D26: =C270 -> 252954.5494 | E26: =IF(C26=0,0,D26/C26) -> 1.008412648 | F26: =IF(E26=0,"",IF($C$13<=E26,"Breached","Compliant")) -> Compliant
B27: =B278 -> Tariff D - AGN Central | C27: =C293 -> 3290883.397 | D27: =C294 -> 3436716.45 | E27: =IF(C27=0,0,D27/C27) -> 1.044314257 | F27: =IF(E27=0,"",IF($C$13<=E27,"Breached","Compliant")) -> Compliant
B28: =B302 -> Tariff D - AGN North | C28: =C317 -> 1269708.706 | D28: =C318 -> 1325974.901 | E28: 1.044314254 | F28: Compliant
B29: =B326 -> Tariff D - Murray Valley | C29: =C341 -> 301501.9272 | D29: =C342 -> 314862.7574 | E29: 1.044314245 | F29: Compliant
B30: =B350 -> Tariff D - Bairnsdale | C30: =C365 -> 46828.24877 | D30: =C366 -> 48903.40646 | E30: 1.044314228 | F30: Compliant
B31: =B374 -> Tariff V - Albury - Residential | C31: =C395 -> 6451575.584 | D31: =C396 -> 6706321.086 | E31: 1.039485781 | F31: Compliant
B32: =B404 -> Tariff V - Albury - Non Residential | C32: =C425 -> 533108.2797 | D32: =C426 -> 540910.687 | E32: 1.01463569 | F32: Compliant
B33: =B434 -> Tariff D - Albury | C33: =C449 -> 98901.55258 | D33: =C450 -> 103284.2982 | E33: 1.044314225 | F33: Compliant
C34: =SUM(C19:C33) -> 258644026 | D34: =SUM(D19:D33) -> 270105638.3 | E34: 1.044314236
B38: =Prop2022DistTar!B6 -> Tariff V - AGN Central - Residential | C38: 1 | D38: 2 | E38: 3 | F38: 4 | G38: 5
C39: 1 | D39: 2 | E39: 3 | F39: 4 | G39: 5
B40: Distribution tariff | C40: Fixed | D40: Blk1 | E40: Blk2 | F40: Blk3
B42: ="Existing : "&Prop2022DistTar!C6 -> Existing : Tariff V - AGN Central - Residential | C42: =INDEX(Prop2022DistTar!$E$8:$E$11,C$39) -> 0.193 | D42: =INDEX(Prop2022DistTar!$E$8:$E$11,D$39) -> 11.8856 | E42: =INDEX(Prop2022DistTar!$E$8:$E$11,E$39) -> 6.8338 | F42: =INDEX(Prop2022DistTar!$E$8:$E$11,F$39) -> 3.7514
B44: ="Proposed : "&B38 -> Proposed : Tariff V - AGN Central - Residential | C44: =INDEX(Prop2022DistTar!$D$8:$D$11,C$38) -> 0.193 | D44: =INDEX(Prop2022DistTar!$D$8:$D$11,D$38) -> 13.2331 | E44: =INDEX(Prop2022DistTar!$D$8:$D$11,E$38) -> 7.6085 | F44: =INDEX(Prop2022DistTar!$D$8:$D$11,F$38) -> 3.7514
B46: Distribution volumes (actual) | C46: =C$40 -> Fixed | D46: =D$40 -> Blk1 | E46: Blk2 | F46: Blk3
B48: =B42 -> Existing : Tariff V - AGN Central - Residential | C48: =INDEX(Prop2022DistTar!$F$8:$F$11,C$13) -> 210211700 | D48: =INDEX(Prop2022DistTar!$F$8:$F$11,D$38) -> 5089650.09 | E48: =INDEX(Prop2022DistTar!$F$8:$F$11,E$38) -> 3282266.537 | F48: =INDEX(Prop2022DistTar!$F$8:$F$11,F$38) -> 20196474.25
B50: =B44 -> Proposed : Tariff V - AGN Central - Residential | C50: =INDEX(Prop2022DistTar!$F$8:$F$11,C$38) -> 210211700 | D50: =INDEX(Prop2022DistTar!$F$8:$F$11,D$38) -> 5089650.09 | E50: =INDEX(Prop2022DistTar!$F$8:$F$11,E$38) -> 3282266.537 | F50: =INDEX(Prop2022DistTar!$F$8:$F$11,F$38) -> 20196474.25
B52: Distribution revenue | C52: =C$40 -> Fixed | D52: Blk1 | E52: Blk2 | F52: Blk3
B54: =B48 -> Existing : Tariff V - AGN Central - Residential | C54: =INDEX(Prop2022DistTar!$H$8:$H$11,C$39) -> 40570858.1 | D54: =INDEX(Prop2022DistTar!$H$8:$H$11,D$39) -> 60493545.11 | E54: =INDEX(Prop2022DistTar!$H$8:$H$11,E$39) -> 22430353.06 | F54: =INDEX(Prop2022DistTar!$H$8:$H$11,F$39) -> 75765053.5
B56: =B50 -> Proposed : Tariff V - AGN Central - Residential | C56: =INDEX(Prop2022DistTar!$G$8:$G$11,C$38) -> 40570858.1 | D56: =INDEX(Prop2022DistTar!$G$8:$G$11,D$38) -> 67351848.6 | E56: =INDEX(Prop2022DistTar!$G$8:$G$11,E$38) -> 24973124.94 | F56: =INDEX(Prop2022DistTar!$G$8:$G$11,F$38) -> 75765053.5
B58: Revenue | C58: Total
B59: =B54 -> Existing : Tariff V - AGN Central - Residential | C59: =SUM(C54:F54) -> 199259809.8
B60: =B56 -> Proposed : Tariff V - AGN Central - Residential | C60: =SUM(C56:F56) -> 208660885.1
B62: Average price movement | C62: =IF(C60=0,"",C60/C59) -> 1.047179988
B64: =IF(C62="","",IF(C62<=$C$13,"REBALANCING CONTROL COMPLIANT","REBALANCING CONTROL BREACHED")) -> REBALANCING CONTROL COMPLIANT
B68: =Prop2022DistTar!B19 -> Tariff V - AGN North - Residential | C68: 1 | D68: 2 | E68: 3 | F68: 4
C69: 1 | D69: 2 | E69: 3 | F69: 4
B70: Distribution tariff | C70: Fixed | D70: Blk1 | E70: Blk2 | F70: Blk3
B72: ="Existing : "&Prop2022DistTar!C19 -> Existing : Tariff V - AGN North - Residential | C72: =INDEX(Prop2022DistTar!$E$21:$E$24,C$39) -> 0.193 | D72: =INDEX(Prop2022DistTar!$E$21:$E$24,D$39) -> 10.4575 | E72: =INDEX(Prop2022DistTar!$E$21:$E$24,E$39) -> 6.1215 | F72: =INDEX(Prop2022DistTar!$E$21:$E$24,F$39) -> 3.3609
B74: ="Proposed : "&B68 -> Proposed : Tariff V - AGN North - Residential | C74: =INDEX(Prop2022DistTar!$D$21:$D$24,C$38) -> 0.193 | D74: =INDEX(Prop2022DistTar!$D$21:$D$24,D$38) -> 11.6431 | E74: =INDEX(Prop2022DistTar!$D$21:$D$24,E$38) -> 6.8155 | F74: =INDEX(Prop2022DistTar!$D$21:$D$24,F$38) -> 3.3609
B76: Distribution volumes (actual) | C76: Fixed | D76: PkBlk1 | E76: PkBlk2 | F76: PkBlk3
B78: =B72 -> Existing : Tariff V - AGN North - Residential | C78: =INDEX(Prop2022DistTar!$F$21:$F$24,C$38) -> 29660925 | D78: =INDEX(Prop2022DistTar!$F$21:$F$24,D$38) -> 688391.1034 | E78: =INDEX(Prop2022DistTar!$F$21:$F$24,E$38) -> 420751.2703 | F78: =INDEX(Prop2022DistTar!$F$21:$F$24,F$38) -> 2776289.638
B80: =B74 -> Proposed : Tariff V - AGN North - Residential | C80: =INDEX(Prop2022DistTar!$F$21:$F$24,C$38) -> 29660925 | D80: =INDEX(Prop2022DistTar!$F$21:$F$24,D$38) -> 688391.1034 | E80: =INDEX(Prop2022DistTar!$F$21:$F$24,E$38) -> 420751.2703 | F80: =INDEX(Prop2022DistTar!$F$21:$F$24,F$38) -> 2776289.638
B82: Distribution revenue | C82: Fixed | D82: PkBlk1 | E82: PkBlk2 | F82: PkBlk3
B84: =B78 -> Existing : Tariff V - AGN North - Residential | C84: =INDEX(Prop2022DistTar!$H$21:$H$24,C$39) -> 5724558.525 | D84: =INDEX(Prop2022DistTar!$H$21:$H$24,D$39) -> 7198849.964 | E84: =INDEX(Prop2022DistTar!$H$21:$H$24,E$39) -> 2575628.901 | F84: =INDEX(Prop2022DistTar!$H$21:$H$24,F$39) -> 9330831.846
B86: =B80 -> Proposed : Tariff V - AGN North - Residential | C86: =INDEX(Prop2022DistTar!$G$21:$G$24,C$38) -> 5724558.525 | D86: =INDEX(Prop2022DistTar!$G$21:$G$24,D$38) -> 8015006.456 | E86: =INDEX(Prop2022DistTar!$G$21:$G$24,E$38) -> 2867630.283 | F86: =INDEX(Prop2022DistTar!$G$21:$G$24,F$38) -> 9330831.846
B88: Revenue | C88: Total
B89: =B84 -> Existing : Tariff V - AGN North - Residential | C89: =SUM(C84:F84) -> 24829869.24
B90: =B86 -> Proposed : Tariff V - AGN North - Residential | C90: =SUM(C86:F86) -> 25938027.11
B92: Average price movement | C92: =IF(C90=0,"",C90/C89) -> 1.044630033
B94: =IF(C92="","",IF(C92<=$C$13,"REBALANCING CONTROL COMPLIANT","REBALANCING CONTROL BREACHED")) -> REBALANCING CONTROL COMPLIANT
B98: =Prop2022DistTar!B32 -> Tariff V - Murray Valley - Residential | C98: 1 | D98: 2 | E98: 3 | F98: 4
C99: 1 | D99: 2 | E99: 3 | F99: 4
B100: Distribution tariff | C100: Fixed | D100: Blk1 | E100: Blk2 | F100: Blk3
B102: ="Existing : "&Prop2022DistTar!C32 -> Existing : Tariff V - Murray Valley - Residential | C102: =INDEX(Prop2022DistTar!$E$34:$E$37,C$39) -> 0.2457 | D102: =INDEX(Prop2022DistTar!$E$34:$E$37,D$39) -> 9.1045 | E102: =INDEX(Prop2022DistTar!$E$34:$E$37,E$39) -> 5.5079 | F102: =INDEX(Prop2022DistTar!$E$34:$E$37,F$39) -> 3.4455
B104: ="Proposed : "&B98 -> Proposed : Tariff V - Murray Valley - Residential | C104: =INDEX(Prop2022DistTar!$D$34:$D$37,C$38) -> 0.2457 | D104: =INDEX(Prop2022DistTar!$D$34:$D$37,D$38) -> 10.1367 | E104: =INDEX(Prop2022DistTar!$D$34:$D$37,E$38) -> 6.1323 | F104: =INDEX(Prop2022DistTar!$D$34:$D$37,F$38) -> 3.4455
B106: Distribution volumes (actual) | C106: Fixed | D106: PkBlk1 | E106: PkBlk2 | F106: PkBlk3
B108: =B102 -> Existing : Tariff V - Murray Valley - Residential | C108: =INDEX(Prop2022DistTar!$F$34:$F$37,C$38) -> 3082859 | D108: =INDEX(Prop2022DistTar!$F$34:$F$37,D$38) -> 61237.19953 | E108: =INDEX(Prop2022DistTar!$F$34:$F$37,E$38) -> 33277.75915 | F108: =INDEX(Prop2022DistTar!$F$34:$F$37,F$38) -> 216314.8498
B110: =B104 -> Proposed : Tariff V - Murray Valley - Residential | C110: =INDEX(Prop2022DistTar!$F$34:$F$37,C$38) -> 3082859 | D110: =INDEX(Prop2022DistTar!$F$34:$F$37,D$38) -> 61237.19953 | E110: =INDEX(Prop2022DistTar!$F$34:$F$37,E$38) -> 33277.75915 | F110: =INDEX(Prop2022DistTar!$F$34:$F$37,F$38) -> 216314.8498
B112: Distribution revenue | C112: Fixed | D112: PkBlk1 | E112: PkBlk2 | F112: PkBlk3
B114: =B108 -> Existing : Tariff V - Murray Valley - Residential | C114: =INDEX(Prop2022DistTar!$H$34:$H$37,C$39) -> 757458.4563 | D114: =INDEX(Prop2022DistTar!$H$34:$H$37,D$39) -> 557534.0831 | E114: =INDEX(Prop2022DistTar!$H$34:$H$37,E$39) -> 183290.5696 | F114: =INDEX(Prop2022DistTar!$H$34:$H$37,F$39) -> 745312.8149
B116: =B110 -> Proposed : Tariff V - Murray Valley - Residential | C116: =INDEX(Prop2022DistTar!$G$34:$G$37,C$38) -> 757458.4563 | D116: =INDEX(Prop2022DistTar!$G$34:$G$37,D$38) -> 620743.1205 | E116: =INDEX(Prop2022DistTar!$G$34:$G$37,E$38) -> 204069.2024 | F116: =INDEX(Prop2022DistTar!$G$34:$G$37,F$38) -> 745312.8149
B118: Revenue | C118: Total
B119: =B114 -> Existing : Tariff V - Murray Valley - Residential | C119: =SUM(C114:F114) -> 2243595.924
B120: =B116 -> Proposed : Tariff V - Murray Valley - Residential | C120: =SUM(C116:F116) -> 2327583.594
B122: Average price movement | C122: =IF(C120=0,"",C120/C119) -> 1.037434401
B124: =IF(C122="","",IF(C122<=$C$13,"REBALANCING CONTROL COMPLIANT","REBALANCING CONTROL BREACHED")) -> REBALANCING CONTROL COMPLIANT
B128: =Prop2022DistTar!B45 -> Tariff V - Bairnsdale - Residential | C128: 1 | D128: 2 | E128: 3 | F128: 4
C129: 1 | D129: 2 | E129: 3 | F129: 4
B130: Distribution tariff | C130: Fixed | D130: Blk1 | E130: Blk2 | F130: Blk3
B132: ="Existing : "&Prop2022DistTar!C45 -> Existing : Tariff V - Bairnsdale - Residential | C132: =INDEX(Prop2022DistTar!$E$47:$E$50,C$39) -> 0.3176 | D132: =INDEX(Prop2022DistTar!$E$47:$E$50,D$39) -> 19.4053 | E132: =INDEX(Prop2022DistTar!$E$47:$E$50,E$39) -> 11.2868 | F132: =INDEX(Prop2022DistTar!$E$47:$E$50,F$39) -> 6.2017
B134: ="Proposed : "&B128 -> Proposed : Tariff V - Bairnsdale - Residential | C134: =INDEX(Prop2022DistTar!$D$47:$D$50,C$38) -> 0.3176 | D134: =INDEX(Prop2022DistTar!$D$47:$D$50,D$38) -> 21.6053 | E134: =INDEX(Prop2022DistTar!$D$47:$D$50,E$38) -> 12.5664 | F134: =INDEX(Prop2022DistTar!$D$47:$D$50,F$38) -> 6.2017
B136: Distribution volumes (actual) | C136: Fixed | D136: PkBlk1 | E136: PkBlk2 | F136: PkBlk3
B138: =B132 -> Existing : Tariff V - Bairnsdale - Residential | C138: =INDEX(Prop2022DistTar!$F$47:$F$50,C$38) -> 1725031 | D138: =INDEX(Prop2022DistTar!$F$47:$F$50,D$38) -> 35064.93851 | E138: =INDEX(Prop2022DistTar!$F$47:$F$50,E$38) -> 18002.24004 | F138: =INDEX(Prop2022DistTar!$F$47:$F$50,F$38) -> 80647.19739
B140: =B134 -> Proposed : Tariff V - Bairnsdale - Residential | C140: =INDEX(Prop2022DistTar!$F$47:$F$50,C$38) -> 1725031 | D140: =INDEX(Prop2022DistTar!$F$47:$F$50,D$38) -> 35064.93851 | E140: =INDEX(Prop2022DistTar!$F$47:$F$50,E$38) -> 18002.24004 | F140: =INDEX(Prop2022DistTar!$F$47:$F$50,F$38) -> 80647.19739
B142: Distribution revenue | C142: Fixed | D142: PkBlk1 | E142: PkBlk2 | F142: PkBlk3
B144: =B138 -> Existing : Tariff V - Bairnsdale - Residential | C144: =INDEX(Prop2022DistTar!$H$47:$H$50,C$39) -> 547869.8456 | D144: =INDEX(Prop2022DistTar!$H$47:$H$50,D$39) -> 680445.6513 | E144: =INDEX(Prop2022DistTar!$H$47:$H$50,E$39) -> 203187.6829 | F144: =INDEX(Prop2022DistTar!$H$47:$H$50,F$39) -> 500149.7241
B146: =B140 -> Proposed : Tariff V - Bairnsdale - Residential | C146: =INDEX(Prop2022DistTar!$G$47:$G$50,C$38) -> 547869.8456 | D146: =INDEX(Prop2022DistTar!$G$47:$G$50,D$38) -> 757588.516 | E146: =INDEX(Prop2022DistTar!$G$47:$G$50,E$38) -> 226223.3493 | F146: =INDEX(Prop2022DistTar!$G$47:$G$50,F$38) -> 500149.7241
B148: Revenue | C148: Total
B149: =B144 -> Existing : Tariff V - Bairnsdale - Residential | C149: =SUM(C144:F144) -> 1931652.904
B150: =B146 -> Proposed : Tariff V - Bairnsdale - Residential | C150: =SUM(C146:F146) -> 2031831.435
B152: Average price movement | C152: =IF(C150=0,"",C150/C149) -> 1.051861559
B154: =IF(C152="","",IF(C152<=$C$13,"REBALANCING CONTROL COMPLIANT","REBALANCING CONTROL BREACHED")) -> REBALANCING CONTROL COMPLIANT
B158: =Prop2022DistTar!B12 -> Tariff V - AGN Central - Non Residential | C158: 1 | D158: 2 | E158: 3 | F158: 4 | G158: 5
C159: 1 | D159: 2 | E159: 3 | F159: 4 | G159: 5
B160: Distribution tariff | C160: Fixed | D160: Blk1 | E160: Blk2 | F160: Blk3 | G160: Blk4
B162: ="Existing : "&Prop2022DistTar!C12 -> Existing : Tariff V - AGN Central - Non Residential | C162: =INDEX(Prop2022DistTar!$E$14:$E$18,C$39) -> 0.193 | D162: =INDEX(Prop2022DistTar!$E$14:$E$18,D$39) -> 8.39 | E162: =INDEX(Prop2022DistTar!$E$14:$E$18,E$39) -> 3.9599 | F162: =INDEX(Prop2022DistTar!$E$14:$E$18,F$39) -> 2.9536 | G162: =INDEX(Prop2022DistTar!$E$14:$E$18,G$39) -> 1.1929
B164: ="Proposed : "&B158 -> Proposed : Tariff V - AGN Central - Non Residential | C164: =INDEX(Prop2022DistTar!$D$14:$D$18,C$38) -> 0.193 | D164: =INDEX(Prop2022DistTar!$D$14:$D$18,D$38) -> 9.3412 | E164: =INDEX(Prop2022DistTar!$D$14:$D$18,E$38) -> 3.9599 | F164: =INDEX(Prop2022DistTar!$D$14:$D$18,F$38) -> 2.9536 | G164: =INDEX(Prop2022DistTar!$D$14:$D$18,G$38) -> 1.1929
B166: Distribution volumes (actual) | C166: Fixed | D166: PkBlk1 | E166: PkBlk2 | F166: PkBlk3 | G166: PkBlk4
B168: =B162 -> Existing : Tariff V - AGN Central - Non Residential | C168: =INDEX(Prop2022DistTar!$F$14:$F$18,C$38) -> 7357700 | D168: =INDEX(Prop2022DistTar!$F$14:$F$18,D$38) -> 260279.1284 | E168: =INDEX(Prop2022DistTar!$F$14:$F$18,E$38) -> 1346836.668 | F168: =INDEX(Prop2022DistTar!$F$14:$F$18,F$38) -> 1013097.139 | G168: =INDEX(Prop2022DistTar!$F$14:$F$18,G$38) -> 3454727.284
B170: =B164 -> Proposed : Tariff V - AGN Central - Non Residential | C170: =INDEX(Prop2022DistTar!$F$14:$F$18,C$38) -> 7357700 | D170: =INDEX(Prop2022DistTar!$F$14:$F$18,D$38) -> 260279.1284 | E170: =INDEX(Prop2022DistTar!$F$14:$F$18,E$38) -> 1346836.668 | F170: =INDEX(Prop2022DistTar!$F$14:$F$18,F$38) -> 1013097.139 | G170: =INDEX(Prop2022DistTar!$F$14:$F$18,G$38) -> 3454727.284
B172: Distribution revenue | C172: Fixed | D172: PkBlk1 | E172: PkBlk2 | F172: PkBlk3 | G172: PkBlk4
B174: =B168 -> Existing : Tariff V - AGN Central - Non Residential | C174: =INDEX(Prop2022DistTar!$H$14:$H$18,C$39) -> 1420036.1 | D174: =INDEX(Prop2022DistTar!$H$14:$H$18,D$39) -> 2183741.888 | E174: =INDEX(Prop2022DistTar!$H$14:$H$18,E$39) -> 5333338.521 | F174: =INDEX(Prop2022DistTar!$H$14:$H$18,F$39) -> 2992283.711 | G174: =INDEX(Prop2022DistTar!$H$14:$H$18,G$39) -> 4121144.177
B176: =B170 -> Proposed : Tariff V - AGN Central - Non Residential | C176: =INDEX(Prop2022DistTar!$G$14:$G$18,C$38) -> 1420036.1 | D176: =INDEX(Prop2022DistTar!$G$14:$G$18,D$38) -> 2431319.394 | E176: =INDEX(Prop2022DistTar!$G$14:$G$18,E$38) -> 5333338.521 | F176: =INDEX(Prop2022DistTar!$G$14:$G$18,F$38) -> 2992283.711 | G176: =INDEX(Prop2022DistTar!$G$14:$G$18,G$38) -> 4121144.177
B178: Revenue | C178: Total
B179: =B174 -> Existing : Tariff V - AGN Central - Non Residential | C179: =SUM(C174:G174) -> 16050544.4
B180: =B176 -> Proposed : Tariff V - AGN Central - Non Residential | C180: =SUM(C176:G176) -> 16298121.9
B182: Average price movement | C182: =IF(C180=0,"",C180/C179) -> 1.015424867
B184: =IF(C182="","",IF(C182<=$C$13,"REBALANCING CONTROL COMPLIANT","REBALANCING CONTROL BREACHED")) -> REBALANCING CONTROL COMPLIANT
B188: =Prop2022DistTar!B25 -> Tariff V - AGN North - Non Residential | C188: 1 | D188: 2 | E188: 3 | F188: 4 | G188: 5
C189: 1 | D189: 2 | E189: 3 | F189: 4 | G189: 5
B190: Distribution tariff | C190: Fixed | D190: Blk1 | E190: Blk2 | F190: Blk3 | G190: Blk4
B192: ="Existing : "&Prop2022DistTar!C25 -> Existing : Tariff V - AGN North - Non Residential | C192: =INDEX(Prop2022DistTar!$E$27:$E$31,C$39) -> 0.193 | D192: =INDEX(Prop2022DistTar!$E$27:$E$31,D$39) -> 7.5259 | E192: =INDEX(Prop2022DistTar!$E$27:$E$31,E$39) -> 3.5788 | F192: =INDEX(Prop2022DistTar!$E$27:$E$31,F$39) -> 2.6691 | G192: =INDEX(Prop2022DistTar!$E$27:$E$31,G$39) -> 1.0785
B194: ="Proposed : "&B188 -> Proposed : Tariff V - AGN North - Non Residential | C194: =INDEX(Prop2022DistTar!$D$27:$D$31,C$38) -> 0.193 | D194: =INDEX(Prop2022DistTar!$D$27:$D$31,D$38) -> 8.3791 | E194: =INDEX(Prop2022DistTar!$D$27:$D$31,E$38) -> 3.5788 | F194: =INDEX(Prop2022DistTar!$D$27:$D$31,F$38) -> 2.6691 | G194: =INDEX(Prop2022DistTar!$D$27:$D$31,G$38) -> 1.0785
B196: Distribution volumes (actual) | C196: Fixed | D196: PkBlk1 | E196: PkBlk2 | F196: PkBlk3 | G196: PkBlk4
B198: =B192 -> Existing : Tariff V - AGN North - Non Residential | C198: =INDEX(Prop2022DistTar!$F$27:$F$31,C$38) -> 1196858 | D198: =INDEX(Prop2022DistTar!$F$27:$F$31,D$38) -> 36017.44758 | E198: =INDEX(Prop2022DistTar!$F$27:$F$31,E$38) -> 173290.6648 | F198: =INDEX(Prop2022DistTar!$F$27:$F$31,F$38) -> 114823.4568 | G198: =INDEX(Prop2022DistTar!$F$27:$F$31,G$38) -> 417484.6139
B200: =B194 -> Proposed : Tariff V - AGN North - Non Residential | C200: =INDEX(Prop2022DistTar!$F$27:$F$31,C$38) -> 1196858 | D200: =INDEX(Prop2022DistTar!$F$27:$F$31,D$38) -> 36017.44758 | E200: =INDEX(Prop2022DistTar!$F$27:$F$31,E$38) -> 173290.6648 | F200: =INDEX(Prop2022DistTar!$F$27:$F$31,F$38) -> 114823.4568 | G200: =INDEX(Prop2022DistTar!$F$27:$F$31,G$38) -> 417484.6139
B202: Distribution revenue | C202: Fixed | D202: PkBlk1 | E202: PkBlk2 | F202: PkBlk3 | G202: PkBlk4
B204: =B198 -> Existing : Tariff V - AGN North - Non Residential | C204: =INDEX(Prop2022DistTar!$H$27:$H$31,C$39) -> 230993.594 | D204: =INDEX(Prop2022DistTar!$H$27:$H$31,D$39) -> 271063.7087 | E204: =INDEX(Prop2022DistTar!$H$27:$H$31,E$39) -> 620172.6312 | F204: =INDEX(Prop2022DistTar!$H$27:$H$31,F$39) -> 306475.2885 | G204: =INDEX(Prop2022DistTar!$H$27:$H$31,G$39) -> 450257.1561
B206: =B200 -> Proposed : Tariff V - AGN North - Non Residential | C206: =INDEX(Prop2022DistTar!$G$27:$G$31,C$38) -> 230993.594 | D206: =INDEX(Prop2022DistTar!$G$27:$G$31,D$38) -> 301793.795 | E206: =INDEX(Prop2022DistTar!$G$27:$G$31,E$38) -> 620172.6312 | F206: =INDEX(Prop2022DistTar!$G$27:$G$31,F$38) -> 306475.2885 | G206: =INDEX(Prop2022DistTar!$G$27:$G$31,G$38) -> 450257.1561
B208: Revenue | C208: Total
B209: =B204 -> Existing : Tariff V - AGN North - Non Residential | C209: =SUM(C204:G204) -> 1878962.378
B210: =B206 -> Proposed : Tariff V - AGN North - Non Residential | C210: =SUM(C206:G206) -> 1909692.465
B212: Average price movement | C212: =IF(C210=0,"",C210/C209) -> 1.016354817
B214: =IF(C212="","",IF(C212<=$C$13,"REBALANCING CONTROL COMPLIANT","REBALANCING CONTROL BREACHED")) -> REBALANCING CONTROL COMPLIANT
B218: =Prop2022DistTar!B38 -> Tariff V - Murray Valley - Non Residential | C218: 1 | D218: 2 | E218: 3 | F218: 4 | G218: 5
C219: 1 | D219: 2 | E219: 3 | F219: 4 | G219: 5
B220: Distribution tariff | C220: Fixed | D220: Blk1 | E220: Blk2 | F220: Blk3 | G220: Blk4
B222: ="Existing : "&Prop2022DistTar!C38 -> Existing : Tariff V - Murray Valley - Non Residential | C222: =INDEX(Prop2022DistTar!$E$40:$E$44,C$39) -> 0.2457 | D222: =INDEX(Prop2022DistTar!$E$40:$E$44,D$39) -> 6.7291 | E222: =INDEX(Prop2022DistTar!$E$40:$E$44,E$39) -> 3.9744 | F222: =INDEX(Prop2022DistTar!$E$40:$E$44,F$39) -> 2.9661 | G222: =INDEX(Prop2022DistTar!$E$40:$E$44,G$39) -> 1.3427
B224: ="Proposed : "&B218 -> Proposed : Tariff V - Murray Valley - Non Residential | C224: =INDEX(Prop2022DistTar!$D$40:$D$44,C$38) -> 0.2457 | D224: =INDEX(Prop2022DistTar!$D$40:$D$44,D$38) -> 7.492 | E224: =INDEX(Prop2022DistTar!$D$40:$D$44,E$38) -> 3.9744 | F224: =INDEX(Prop2022DistTar!$D$40:$D$44,F$38) -> 2.9661 | G224: =INDEX(Prop2022DistTar!$D$40:$D$44,G$38) -> 1.3427
B226: Distribution volumes (actual) | C226: Fixed | D226: PkBlk1 | E226: PkBlk2 | F226: PkBlk3 | G226: PkBlk4
B228: =B222 -> Existing : Tariff V - Murray Valley - Non Residential | C228: =INDEX(Prop2022DistTar!$F$40:$F$44,C$38) -> 133894 | D228: =INDEX(Prop2022DistTar!$F$40:$F$44,D$38) -> 4363.733558 | E228: =INDEX(Prop2022DistTar!$F$40:$F$44,E$38) -> 19533.93317 | F228: =INDEX(Prop2022DistTar!$F$40:$F$44,F$38) -> 10791.8695 | G228: =INDEX(Prop2022DistTar!$F$40:$F$44,G$38) -> 25569.56803
B230: =B224 -> Proposed : Tariff V - Murray Valley - Non Residential | C230: =INDEX(Prop2022DistTar!$F$40:$F$44,C$38) -> 133894 | D230: =INDEX(Prop2022DistTar!$F$40:$F$44,D$38) -> 4363.733558 | E230: =INDEX(Prop2022DistTar!$F$40:$F$44,E$38) -> 19533.93317 | F230: =INDEX(Prop2022DistTar!$F$40:$F$44,F$38) -> 10791.8695 | G230: =INDEX(Prop2022DistTar!$F$40:$F$44,G$38) -> 25569.56803
B232: Distribution revenue | C232: Fixed | D232: PkBlk1 | E232: PkBlk2 | F232: PkBlk3 | G232: PkBlk4
B234: =B228 -> Existing : Tariff V - Murray Valley - Non Residential | C234: =INDEX(Prop2022DistTar!$H$40:$H$44,C$39) -> 32897.7558 | D234: =INDEX(Prop2022DistTar!$H$40:$H$44,D$39) -> 29363.99949 | E234: =INDEX(Prop2022DistTar!$H$40:$H$44,E$39) -> 77635.66399 | F234: =INDEX(Prop2022DistTar!$H$40:$H$44,F$39) -> 32009.76413 | G234: =INDEX(Prop2022DistTar!$H$40:$H$44,G$39) -> 34332.25899
B236: =B230 -> Proposed : Tariff V - Murray Valley - Non Residential | C236: =INDEX(Prop2022DistTar!$G$40:$G$44,C$38) -> 32897.7558 | D236: =INDEX(Prop2022DistTar!$G$40:$G$44,D$38) -> 32693.09182 | E236: =INDEX(Prop2022DistTar!$G$40:$G$44,E$38) -> 77635.66399 | F236: =INDEX(Prop2022DistTar!$G$40:$G$44,F$38) -> 32009.76413 | G236: =INDEX(Prop2022DistTar!$G$40:$G$44,G$38) -> 34332.25899
B238: Revenue | C238: Total
B239: =B234 -> Existing : Tariff V - Murray Valley - Non Residential | C239: =SUM(C234:G234) -> 206239.4424
B240: =B236 -> Proposed : Tariff V - Murray Valley - Non Residential | C240: =SUM(C236:G236) -> 209568.5347
B242: Average price movement | C242: =IF(C240=0,"",C240/C239) -> 1.01614188
B244: =IF(C242="","",IF(C242<=$C$13,"REBALANCING CONTROL COMPLIANT","REBALANCING CONTROL BREACHED")) -> REBALANCING CONTROL COMPLIANT
B248: =Prop2022DistTar!B51 -> Tariff V - Bairnsdale - Non Residential | C248: 1 | D248: 2 | E248: 3 | F248: 4 | G248: 5
C249: 1 | D249: 2 | E249: 3 | F249: 4 | G249: 5
B250: Distribution tariff | C250: Fixed | D250: Blk1 | E250: Blk2 | F250: Blk3 | G250: Blk4
B252: ="Existing : "&Prop2022DistTar!C51 -> Existing : Tariff V - Bairnsdale - Non Residential | C252: =INDEX(Prop2022DistTar!$E$53:$E$57,C$39) -> 0.3176 | D252: =INDEX(Prop2022DistTar!$E$53:$E$57,D$39) -> 13.7965 | E252: =INDEX(Prop2022DistTar!$E$53:$E$57,E$39) -> 6.7261 | F252: =INDEX(Prop2022DistTar!$E$53:$E$57,F$39) -> 5.0149 | G252: =INDEX(Prop2022DistTar!$E$53:$E$57,G$39) -> 2.0256
B254: ="Proposed : "&B248 -> Proposed : Tariff V - Bairnsdale - Non Residential | C254: =INDEX(Prop2022DistTar!$D$53:$D$57,C$38) -> 0.3176 | D254: =INDEX(Prop2022DistTar!$D$53:$D$57,D$38) -> 15.3606 | E254: =INDEX(Prop2022DistTar!$D$53:$D$57,E$38) -> 6.7261 | F254: =INDEX(Prop2022DistTar!$D$53:$D$57,F$38) -> 5.0149 | G254: =INDEX(Prop2022DistTar!$D$53:$D$57,G$38) -> 2.0105
B256: Distribution volumes (actual) | C256: Fixed | D256: PkBlk1 | E256: PkBlk2 | F256: PkBlk3 | G256: PkBlk4
B258: =B252 -> Existing : Tariff V - Bairnsdale - Non Residential | C258: =INDEX(Prop2022DistTar!$F$53:$F$57,C$38) -> 44767 | D258: =INDEX(Prop2022DistTar!$F$53:$F$57,D$38) -> 1750.114674 | E258: =INDEX(Prop2022DistTar!$F$53:$F$57,E$38) -> 12304.52536 | F258: =INDEX(Prop2022DistTar!$F$53:$F$57,F$38) -> 9092.501958 | G258: =INDEX(Prop2022DistTar!$F$53:$F$57,G$38) -> 41529.11348
B260: =B254 -> Proposed : Tariff V - Bairnsdale - Non Residential | C260: =INDEX(Prop2022DistTar!$F$53:$F$57,C$38) -> 44767 | D260: =INDEX(Prop2022DistTar!$F$53:$F$57,D$38) -> 1750.114674 | E260: =INDEX(Prop2022DistTar!$F$53:$F$57,E$38) -> 12304.52536 | F260: =INDEX(Prop2022DistTar!$F$53:$F$57,F$38) -> 9092.501958 | G260: =INDEX(Prop2022DistTar!$F$53:$F$57,G$38) -> 41529.11348
B262: Distribution revenue | C262: Fixed | D262: PkBlk1 | E262: PkBlk2 | F262: PkBlk3 | G262: PkBlk4
B264: =B258 -> Existing : Tariff V - Bairnsdale - Non Residential | C264: =INDEX(Prop2022DistTar!$H$53:$H$57,C$39) -> 14217.9992 | D264: =INDEX(Prop2022DistTar!$H$53:$H$57,D$39) -> 24145.45711 | E264: =INDEX(Prop2022DistTar!$H$53:$H$57,E$39) -> 82761.46803 | F264: =INDEX(Prop2022DistTar!$H$53:$H$57,F$39) -> 45597.98807 | G264: =INDEX(Prop2022DistTar!$H$53:$H$57,G$39) -> 84121.37226
B266: =B260 -> Proposed : Tariff V - Bairnsdale - Non Residential | C266: =INDEX(Prop2022DistTar!$G$53:$G$57,C$38) -> 14217.9992 | D266: =INDEX(Prop2022DistTar!$G$53:$G$57,D$38) -> 26882.81147 | E266: =INDEX(Prop2022DistTar!$G$53:$G$57,E$38) -> 82761.46803 | F266: =INDEX(Prop2022DistTar!$G$53:$G$57,F$38) -> 45597.98807 | G266: =INDEX(Prop2022DistTar!$G$53:$G$57,G$38) -> 83494.28265
B268: Revenue | C268: Total
B269: =B264 -> Existing : Tariff V - Bairnsdale - Non Residential | C269: =SUM(C264:G264) -> 250844.2847
B270: =B266 -> Proposed : Tariff V - Bairnsdale - Non Residential | C270: =SUM(C266:G266) -> 252954.5494
B272: Average price movement | C272: =IF(C270=0,"",C270/C269) -> 1.008412648
B274: =IF(C272="","",IF(C272<=$C$13,"REBALANCING CONTROL COMPLIANT","REBALANCING CONTROL BREACHED")) -> REBALANCING CONTROL COMPLIANT
B278: =Prop2022DistTar!B59 -> Tariff D - AGN Central
C279: 1 | D279: 2 | E279: 3
B280: Distribution tariff | C280: DemBlk1 | D280: DemBlk2 | E280: DemBlk2
B281: ="Existing: "&Prop2022DistTar!C59 -> Existing: Tariff D - AGN Central | C281: =INDEX(Prop2022DistTar!$E$60:$E$62,C279) -> 1460.155 | D281: =INDEX(Prop2022DistTar!$E$60:$E$62,D279) -> 892.6453 | E281: =INDEX(Prop2022DistTar!$E$60:$E$62,E279) -> 163.0154
B282: ="Proposed: "&B278 -> Proposed: Tariff D - AGN Central | C282: =INDEX(Prop2022DistTar!$D$60:$D$62,C279) -> 1524.8607 | D282: =INDEX(Prop2022DistTar!$D$60:$D$62,D279) -> 932.2022 | E282: =INDEX(Prop2022DistTar!$D$60:$D$62,E279) -> 170.2393
B284: Distribution volumes (actual) | C284: DemBlk1 | D284: DemBlk2 | E284: DemBlk2
B285: =B281 -> Existing: Tariff D - AGN Central | C285: =INDEX(Prop2022DistTar!$F$60:$F$62,C$38) -> 1415.4355 | D285: =INDEX(Prop2022DistTar!$F$60:$F$62,D$38) -> 1154.704 | E285: =INDEX(Prop2022DistTar!$F$60:$F$62,E$38) -> 1186.3117
B286: =B282 -> Proposed: Tariff D - AGN Central | C286: =INDEX(Prop2022DistTar!$F$60:$F$62,C$38) -> 1415.4355 | D286: =INDEX(Prop2022DistTar!$F$60:$F$62,D$38) -> 1154.704 | E286: =INDEX(Prop2022DistTar!$F$60:$F$62,E$38) -> 1186.3117
B288: Distribution revenue | C288: DemBlk1 | D288: DemBlk2 | E288: DemBlk2
B289: =B285 -> Existing: Tariff D - AGN Central | C289: =INDEX(Prop2022DistTar!$H$60:$H$62,C279) -> 2066755.223 | D289: =INDEX(Prop2022DistTar!$H$60:$H$62,D279) -> 1030741.098 | E289: =INDEX(Prop2022DistTar!$H$60:$H$62,E279) -> 193387.0763
B290: =B286 -> Proposed: Tariff D - AGN Central | C290: =INDEX(Prop2022DistTar!$G$60:$G$62,C279) -> 2158341.967 | D290: =INDEX(Prop2022DistTar!$G$60:$G$62,D279) -> 1076417.609 | E290: =INDEX(Prop2022DistTar!$G$60:$G$62,E279) -> 201956.8734
B292: Revenue | C292: Total
B293: =B289 -> Existing: Tariff D - AGN Central | C293: =SUM(C289:E289) -> 3290883.397
B294: =B290 -> Proposed: Tariff D - AGN Central | C294: =SUM(C290:E290) -> 3436716.45
B296: Average price movement | C296: =IF(C294=0,"",C294/C293) -> 1.044314257
B298: =IF(C296="","",IF(C296<=$C$13,"REBALANCING CONTROL COMPLIANT","REBALANCING CONTROL BREACHED")) -> REBALANCING CONTROL COMPLIANT
B302: =Prop2022DistTar!B64 -> Tariff D - AGN North
C303: 1 | D303: 2 | E303: 3
B304: Distribution tariff | C304: DemBlk1 | D304: DemBlk2 | E304: DemBlk2
B305: ="Existing: "&Prop2022DistTar!C64 -> Existing: Tariff D - AGN North | C305: =INDEX(Prop2022DistTar!$E$65:$E$67,C303) -> 1460.155 | D305: =INDEX(Prop2022DistTar!$E$65:$E$67,D303) -> 892.6453 | E305: =INDEX(Prop2022DistTar!$E$65:$E$67,E303) -> 163.0154
B306: ="Proposed: "&B302 -> Proposed: Tariff D - AGN North | C306: =INDEX(Prop2022DistTar!$D$65:$D$67,C303) -> 1524.8607 | D306: =INDEX(Prop2022DistTar!$D$65:$D$67,D303) -> 932.2022 | E306: =INDEX(Prop2022DistTar!$D$65:$D$67,E303) -> 170.2393
B308: Distribution volumes (actual) | C308: DemBlk1 | D308: DemBlk2 | E308: DemBlk2
B309: =B305 -> Existing: Tariff D - AGN North | C309: =INDEX(Prop2022DistTar!$F$65:$F$67,C$38) -> 442.9409 | D309: =INDEX(Prop2022DistTar!$F$65:$F$67,D$38) -> 622.1981 | E309: =INDEX(Prop2022DistTar!$F$65:$F$67,E$38) -> 414.342
B310: =B306 -> Proposed: Tariff D - AGN North | C310: =INDEX(Prop2022DistTar!$F$65:$F$67,C$38) -> 442.9409 | D310: =INDEX(Prop2022DistTar!$F$65:$F$67,D$38) -> 622.1981 | E310: =INDEX(Prop2022DistTar!$F$65:$F$67,E$38) -> 414.342
B312: Distribution revenue | C312: DemBlk1 | D312: DemBlk2 | E312: DemBlk2
B313: =B309 -> Existing: Tariff D - AGN North | C313: =INDEX(Prop2022DistTar!$H$65:$H$67,C303) -> 646762.3698 | D313: =INDEX(Prop2022DistTar!$H$65:$H$67,D303) -> 555402.2096 | E313: =INDEX(Prop2022DistTar!$H$65:$H$67,E303) -> 67544.12687
B314: =B310 -> Proposed: Tariff D - AGN North | C314: =INDEX(Prop2022DistTar!$G$65:$G$67,C303) -> 675423.1708 | D314: =INDEX(Prop2022DistTar!$G$65:$G$67,D303) -> 580014.4377 | E314: =INDEX(Prop2022DistTar!$G$65:$G$67,E303) -> 70537.29204
B316: Revenue | C316: Total
B317: =B313 -> Existing: Tariff D - AGN North | C317: =SUM(C313:E313) -> 1269708.706
B318: =B314 -> Proposed: Tariff D - AGN North | C318: =SUM(C314:E314) -> 1325974.901
B320: Average price movement | C320: =IF(C318=0,"",C318/C317) -> 1.044314254
B322: =IF(C320="","",IF(C320<=$C$13,"REBALANCING CONTROL COMPLIANT","REBALANCING CONTROL BREACHED")) -> REBALANCING CONTROL COMPLIANT
B326: =Prop2022DistTar!B69 -> Tariff D - Murray Valley
C327: 1 | D327: 2 | E327: 3
B328: Distribution tariff | C328: DemBlk1 | D328: DemBlk2 | E328: DemBlk2
B329: ="Existing: "&Prop2022DistTar!C69 -> Existing: Tariff D - Murray Valley | C329: =INDEX(Prop2022DistTar!$E$70:$E$72,C327) -> 1701.986 | D329: =INDEX(Prop2022DistTar!$E$70:$E$72,D327) -> 1050.2328 | E329: =INDEX(Prop2022DistTar!$E$70:$E$72,E327) -> 178.8732
B330: ="Proposed: "&B326 -> Proposed: Tariff D - Murray Valley | C330: =INDEX(Prop2022DistTar!$D$70:$D$72,C327) -> 1777.4082 | D330: =INDEX(Prop2022DistTar!$D$70:$D$72,D327) -> 1096.7731 | E330: =INDEX(Prop2022DistTar!$D$70:$D$72,E327) -> 186.7998
B332: Distribution volumes (actual) | C332: DemBlk1 | D332: DemBlk2 | E332: DemBlk2
B333: =B329 -> Existing: Tariff D - Murray Valley | C333: =INDEX(Prop2022DistTar!$F$70:$F$72,C$38) -> 69.0653 | D333: =INDEX(Prop2022DistTar!$F$70:$F$72,D$38) -> 160.5158 | E333: =INDEX(Prop2022DistTar!$F$70:$F$72,E$38) -> 85.9536
B334: =B330 -> Proposed: Tariff D - Murray Valley | C334: =INDEX(Prop2022DistTar!$F$70:$F$72,C$38) -> 69.0653 | D334: =INDEX(Prop2022DistTar!$F$70:$F$72,D$38) -> 160.5158 | E334: =INDEX(Prop2022DistTar!$F$70:$F$72,E$38) -> 85.9536
B336: Distribution revenue | C336: DemBlk1 | D336: DemBlk2 | E336: DemBlk2
B337: =B333 -> Existing: Tariff D - Murray Valley | C337: =INDEX(Prop2022DistTar!$H$70:$H$72,C327) -> 117548.1737 | D337: =INDEX(Prop2022DistTar!$H$70:$H$72,D327) -> 168578.9581 | E337: =INDEX(Prop2022DistTar!$H$70:$H$72,E327) -> 15374.79548
B338: =B334 -> Proposed: Tariff D - Murray Valley | C338: =INDEX(Prop2022DistTar!$G$70:$G$72,C327) -> 122757.2306 | D338: =INDEX(Prop2022DistTar!$G$70:$G$72,D327) -> 176049.4116 | E338: =INDEX(Prop2022DistTar!$G$70:$G$72,E327) -> 16056.11529
B340: Revenue | C340: Total
B341: =B337 -> Existing: Tariff D - Murray Valley | C341: =SUM(C337:E337) -> 301501.9272
B342: =B338 -> Proposed: Tariff D - Murray Valley | C342: =SUM(C338:E338) -> 314862.7574
... 66 more rows

Sheet ARS
A1: ="Tariff Approval - "&'Model update'!B3 -> Tariff Approval - Aust. Gas Networks (Vic & Albury)
A3: Ancillary Reference Services (Exc GST)
B5: ='Model update'!$B$8 -> 2021 | C5: ='Model update'!$B$5 -> 2022
A6: Meter and Gas Installation Test | B6: 220 | C6: =ROUND(B6*(1+'Model update'!$B$30),0) -> 228
A7: Disconnection | B7: 73 | C7: =ROUND(B7*(1+'Model update'!$B$30),0) -> 76
A8: Reconnection | B8: 85 | C8: =ROUND(B8*(1+'Model update'!$B$30),0) -> 88
A9: Meter Removal | B9: 104 | C9: =ROUND(B9*(1+'Model update'!$B$30),0) -> 108
A10: Meter Reinstallation | B10: 104 | C10: =ROUND(B10*(1+'Model update'!$B$30),0) -> 108
A11: Special Meter Read - Metropolitan | B11: 9.3 | C11: =ROUND(B11*(1+'Model update'!$B$30),1) -> 9.7
A12: Special Meter Read - Non Metropolitan | B12: 12.8 | C12: =ROUND(B12*(1+'Model update'!$B$30),1) -> 13.3
A14: ="Note: "&'Model update'!$B$5&" formula is as per AA2018-22, Section 4.4.2, p9 : ART = ARTt-1 * (1+CPI)" -> Note: 2022 formula is as per AA2018-22, Section 4.4.2, p9 : ART = ARTt-1 * (1+CPI)
